bitfinex/quotes_SOLUSD_20260306
["timestamp","ask_amount","ask_price","bid_price","bid_amount"]
[1772822546530,4.3235408,85.32,85.281,0.5]
[1772822548344,7.46396463,85.333,85.282,0.5]
[1772822548538,4.3235408,85.33,85.282,0.5]
[1772822549239,22.00834994,85.334,85.287,0.14216157]
[1772822549445,22.00834994,85.334,85.284,0.28432314]
[1772822549446,22.00834994,85.334,85.29,0.5]
[1772822549833,4.3235408,85.33,85.29,0.5]
[1772822550430,22.00834994,85.334,85.29,0.5]
[1772822550755,4.31678771,85.33,85.29,0.5]
[1772822551651,4.31678771,85.33,85.292,0.5]
[1772822552975,4.31678771,85.32,85.292,0.5]
[1772822553158,4.31678771,85.32,85.268,41.5878084]
[1772822553159,0.47244426,85.309,85.269,99.68452778]
[1772822553334,0.47244426,85.309,85.27,0.28432314]
[1772822553531,0.47244426,85.309,85.271,41.04560752]
[1772822553933,0.47244426,85.299,85.271,41.04560752]
[1772822554552,4.31678771,85.3,85.271,41.04560752]
[1772822554736,0.47244426,85.306,85.271,41.04560752]
[1772822555252,0.47244426,85.306,85.272,0.48530663]
[1772822555967,0.47244426,85.306,85.274,0.48530663]
[1772822557847,0.47244426,85.304,85.274,0.48530663]
[1772822558442,0.47244426,85.304,85.276,0.48530663]
[1772822558655,0.47244426,85.302,85.276,0.48530663]
[1772822560850,0.47244426,85.301,85.277,11.72649131]
[1772822561170,0.47244426,85.299,85.277,11.72649131]
[1772822562378,0.47244426,85.289,85.268,41.5878084]
[1772822562561,41.16948575,85.309,85.268,41.5878084]
[1772822562562,4.78923197,85.28,85.268,41.5878084]
[1772822562756,0.47244426,85.279,85.268,41.5878084]
[1772822562945,0.47244426,85.279,85.269,11.7275915]
[1772822563350,0.47244426,85.279,85.268,41.5878084]
[1772822563950,0.47244426,85.279,85.269,11.7275915]
[1772822564171,0.47244426,85.289,85.268,53.3154654]
[1772822564363,4.31678771,85.3,85.269,0.48530663]
[1772822564678,4.31678771,85.29,85.269,0.48530663]
[1772822564863,0.47244426,85.289,85.269,0.48530663]
[1772822565249,4.31678771,85.3,85.271,0.48622213]
[1772822565555,4.31678771,85.33,85.273,0.48622213]
[1772822565747,16.03599549,85.33,85.278,0.14216157]
[1772822565945,16.03599549,85.33,85.279,0.48622213]
[1772822566149,4.31678771,85.32,85.279,0.48622213]
[1772822566546,4.31678771,85.33,85.279,0.48622213]
[1772822567364,11.71934512,85.329,85.281,0.48622213]
[1772822569074,0.02755574,85.328,85.283,0.48622213]
[1772822570272,11.71934512,85.329,85.283,0.48622213]
[1772822570273,4.31678771,85.31,85.283,0.48622213]
[1772822570576,0.02755574,85.319,85.283,0.48622213]
[1772822570979,0.02755574,85.318,85.285,0.48622213]
[1772822572470,4.34434345,85.31,85.285,0.48622213]
[1772822572778,4.34434345,85.3,85.279,12.21238278]
[1772822572962,16.06767889,85.3,85.279,12.21238278]
[1772822573484,16.06767889,85.3,85.279,0.48622213]
[1772822573771,16.06767889,85.3,85.28,11.72607879]
[1772822574174,16.06767889,85.3,85.28,12.21230092]
[1772822574562,4.34434345,85.3,85.28,12.21230092]
[1772822574764,4.31678771,85.3,85.281,0.48622213]
[1772822574976,4.31678771,85.31,85.283,0.48622213]
[1772822575176,16.03877783,85.31,85.283,0.48622213]
[1772822575965,0.02755574,85.309,85.283,0.48622213]
[1772822576785,11.72058134,85.32,85.283,0.48622213]
[1772822576984,11.72058134,85.32,85.282,41.0403133]
[1772822576985,16.03736905,85.32,85.285,0.49486326]
[1772822577879,16.06492479,85.32,85.285,0.49486326]
[1772822578662,0.02755574,85.319,85.285,0.49486326]
[1772822578859,0.02755574,85.299,85.273,0.49486326]
[1772822579078,4.31678771,85.29,85.273,0.49486326]
[1772822579463,0.02755574,85.298,85.269,11.7275915]
[1772822579674,4.31678771,85.29,85.269,11.7275915]
[1772822579875,4.31678771,85.28,85.268,41.5878084]
[1772822580477,0.02755574,85.289,85.268,41.5878084]
[1772822580676,4.31678771,85.29,85.27,0.49486326]
[1772822581884,4.31678771,85.28,85.268,41.5878084]
[1772822582065,4.31678771,85.28,85.22,0.5]
[1772822582380,4.31678771,85.26,85.22,0.5]
[1772822582582,0.42648471,85.289,85.22,0.5]
[1772822582583,4.31678771,85.25,85.22,0.5]
[1772822582786,4.31678771,85.24,85.22,0.5]
[1772822584066,4.31678771,85.25,85.222,0.5]
[1772822584259,4.31678771,85.24,85.222,0.5]
[1772822584559,4.31678771,85.25,85.222,0.5]
[1772822585176,4.31678771,85.25,85.224,0.5]
[1772822587189,11.7287928,85.261,85.226,0.5]
[1772822587392,4.31678771,85.25,85.226,0.5]
[1772822587888,4.31678771,85.27,85.226,0.5]
[1772822591096,4.31678771,85.27,85.227,41.06679808]
[1772822591282,4.31678771,85.27,85.228,0.5]
[1772822593872,4.31678771,85.27,85.23,0.5]
[1772822594888,4.31678771,85.28,85.23,0.5]
[1772822595092,4.31678771,85.27,85.23,0.5]
[1772822595293,4.31678771,85.26,85.23,0.5]
[1772822595897,4.31678771,85.27,85.23,0.5]
[1772822596091,4.31678771,85.27,85.232,0.5]
[1772822596682,11.7275915,85.269,85.232,0.5]
[1772822596982,4.31678771,85.25,85.232,0.5]
[1772822598041,4.31678771,85.25,85.233,11.7325449]
[1772822601996,4.31678771,85.26,85.234,0.5]
[1772822604380,4.31678771,85.25,85.235,12.2322696]
[1772822604577,4.31678771,85.26,85.235,12.2322696]
[1772822605000,4.31678771,85.26,85.235,0.5]
[1772822605299,4.31678771,85.26,85.235,12.2322696]
[1772822605494,4.31678771,85.26,85.235,11.7322696]
[1772822605876,4.31678771,85.26,85.236,0.5]
[1772822606698,4.31678771,85.26,85.237,11.73199432]
[1772822607898,4.31678771,85.25,85.224,0.5]
[1772822608499,4.31678771,85.25,85.226,0.5]
[1772822609180,4.31678771,85.26,85.226,0.5]
[1772822609380,4.31678771,85.25,85.226,0.5]
[1772822610506,4.32498281,85.25,85.226,0.5]
[1772822610699,4.32498281,85.25,85.228,0.5]
[1772822612805,4.32498281,85.25,85.23,0.5]
[1772822613109,5.10909883,85.267,85.23,0.5]
[1772822613307,4.32498281,85.26,85.23,0.5]
[1772822615487,4.32498281,85.25,85.232,0.5]
[1772822616394,4.32498281,85.26,85.232,0.5]
[1772822618898,4.32498281,85.26,85.234,0.5]
[1772822622112,4.32498281,85.27,85.236,0.5]
[1772822625016,4.32498281,85.26,85.237,41.06198012]
[1772822625209,4.32498281,85.26,85.238,0.5]
[1772822627424,4.32498281,85.26,85.239,11.73171904]
[1772822627721,4.32498281,85.26,85.212,0.28432314]
[1772822627722,11.72896702,85.259,85.233,0.5]
[1772822628917,11.72896702,85.259,85.235,0.5]
[1772822629719,4.32498281,85.26,85.235,0.5]
[1772822630226,11.72818205,85.265,85.235,0.5]
[1772822632327,4.32498281,85.28,85.237,0.5]
[1772822632631,4.32498281,85.27,85.237,0.5]
[1772822633414,16.04968676,85.29,85.237,0.5]
[1772822634318,16.04968676,85.29,85.238,41.06149838]
[1772822634517,16.04968676,85.29,85.239,0.5]
[1772822635543,4.32498281,85.28,85.239,0.5]
[1772822636933,4.32498281,85.28,85.241,0.5]
[1772822638312,4.32498281,85.29,85.241,0.5]
[1772822638524,16.0497438,85.29,85.241,0.5]
[1772822639432,4.32498281,85.29,85.243,0.5]
[1772822639630,16.0497438,85.414,85.243,0.5]
[1772822639817,11.72270501,85.305,85.247,0.5]
[1772822640221,11.72270501,85.305,85.249,0.5]
[1772822640533,11.72270501,85.305,85.251,0.5]
[1772822640733,4.32498281,85.3,85.251,0.5]
[1772822640947,4.32498281,85.29,85.251,0.5]
[1772822641437,11.72401664,85.295,85.253,0.5]
[1772822641935,4.32498281,85.29,85.253,0.5]
[1772822642119,11.72401664,85.295,85.253,0.5]
[1772822642934,11.7235016,85.299,85.253,0.5]
[1772822643726,4.32498281,85.29,85.255,0.5]
[1772822644828,0.69599997,85.296,85.255,0.5]
[1772822646142,0.69599997,85.296,85.257,0.5]
[1772822647441,0.69599997,85.296,85.244,46.92400246]
[1772822647442,0.69599997,85.296,85.259,0.5]
[1772822647941,4.32498281,85.29,85.259,0.5]
[1772822648140,11.72354198,85.299,85.259,0.5]
[1772822648345,4.32498281,85.29,85.259,0.5]
[1772822649343,11.72484142,85.289,85.261,0.5]
[1772822650341,16.04973936,85.29,85.261,0.5]
[1772822650724,11.72475655,85.29,85.261,0.5]
[1772822650924,16.04973936,85.29,85.261,0.5]
[1772822652032,4.32498281,85.28,85.262,11.72855433]
[1772822652232,16.04973936,85.29,85.262,12.22855433]
[1772822652837,16.04973936,85.29,85.263,0.5]
[1772822653040,16.04973936,85.29,85.264,11.72827922]
[1772822653843,45.36149923,85.29,85.259,11.72890089]
[1772822654025,45.36149923,85.29,85.259,12.22890089]
[1772822654232,16.04973936,85.29,85.26,0.5]
[1772822655134,16.04973936,85.29,85.262,0.5]
[1772822655331,4.32498281,85.29,85.262,0.5]
[1772822655554,16.04971925,85.29,85.262,0.5]
[1772822655732,16.04971925,85.29,85.261,11.72869189]
[1772822655931,16.04971925,85.29,85.262,0.5]
[1772822657456,16.04971925,85.29,85.264,0.5]
[1772822660446,11.72473644,85.29,85.266,0.5]
[1772822660634,5.2512604,85.299,85.266,0.5]
[1772822660838,4.32498281,85.29,85.266,0.5]
[1772822661428,4.32498281,85.3,85.266,0.5]
[1772822663154,4.32498281,85.3,85.268,0.5]
[1772822665258,6.1216438,85.328,85.27,0.5]
[1772822665602,4.42498281,85.34,85.281,0.5]
[1772822666252,11.71804431,85.339,85.281,0.5]
[1772822667245,4.32498281,85.33,85.281,0.5]
[1772822667639,11.71934512,85.329,85.284,0.5]
[1772822667845,4.32498281,85.32,85.284,0.5]
[1772822668351,11.71934512,85.329,85.284,0.5]
[1772822669040,16.04419957,85.33,85.284,0.5]
[1772822670564,16.04419957,85.33,85.286,0.5]
[1772822670565,4.31703498,85.32,85.286,0.5]
[1772822670950,16.03625174,85.33,85.286,0.5]
[1772822671265,4.31703498,85.31,85.286,0.5]
[1772822673250,11.72209262,85.309,85.285,11.72539133]
[1772822673451,11.72209262,85.309,85.285,12.22539133]
[1772822675041,11.72209262,85.309,85.286,0.5]
[1772822676471,11.72209262,85.309,85.287,11.72511637]
[1772822677070,4.31703498,85.3,85.264,0.5]
[1772822677365,4.31703498,85.29,85.264,0.5]
[1772822677565,4.31703498,85.3,85.264,0.5]
[1772822679276,4.31703498,85.31,85.266,0.5]
[1772822679852,4.31703498,85.3,85.266,0.5]
[1772822680360,11.72209262,85.309,85.268,0.5]
[1772822680762,0.28432314,85.324,85.268,0.5]
[1772822680763,4.31703498,85.32,85.268,0.5]
[1772822682253,4.31703498,85.31,85.27,0.5]
[1772822683484,4.31703498,85.32,85.27,0.5]
[1772822684477,11.72071871,85.319,85.271,41.04560752]
[1772822684659,11.72071871,85.319,85.272,0.5]
[1772822685479,4.31703498,85.31,85.272,0.5]
[1772822686367,4.31703498,85.3,85.274,0.5]
[1772822687074,4.31703498,85.29,85.273,11.72704138]
[1772822687384,11.72346686,85.299,85.273,11.72704138]
[1772822688467,11.72346686,85.299,85.27,0.5]
[1772822689973,29.30541528,85.309,85.27,0.5]
[1772822689974,22.71934996,85.334,85.27,0.5]
[1772822690180,4.31703498,85.32,85.27,0.5]
[1772822690771,4.31703498,85.32,85.271,41.04560752]
[1772822690956,11.72071871,85.319,85.272,0.5]
[1772822692357,4.31703498,85.31,85.272,0.5]
[1772822693079,11.72209262,85.309,85.274,0.5]
[1772822694377,4.31703498,85.31,85.274,0.5]
[1772822694578,16.03902376,85.31,85.274,0.5]
[1772822694774,4.31703498,85.31,85.274,0.5]
[1772822695280,4.31703498,85.31,85.276,0.5]
[1772822695454,11.72085689,85.318,85.276,0.5]
[1772822695983,4.31703498,85.33,85.276,0.5]
[1772822696277,34.43802776,85.334,85.278,0.5]
[1772822696484,34.43802776,85.334,85.282,0.5]
[1772822696772,22.71934996,85.334,85.282,0.5]
[1772822697160,0.1,85.34,85.288,0.45739936]
[1772822697382,11.71467731,85.363,85.296,0.14216157]
[1772822697576,12.11467731,85.363,85.311,0.45739936]
[1772822697784,4.31703498,85.36,85.311,0.45739936]
[1772822697984,0.4,85.36,85.311,0.45739936]
[1772822698204,4.71703498,85.36,85.311,0.45739936]
[1772822699090,4.71703498,85.36,85.314,0.45739936]
[1772822700292,11.7134803,85.372,85.316,0.45739936]
[1772822700471,0.4,85.359,85.322,0.45739936]
[1772822700867,4.71703498,85.35,85.322,0.45739936]
[1772822701266,4.71703498,85.35,85.324,0.45739936]
[1772822702169,12.11577381,85.356,85.324,0.45739936]
[1772822702486,0.4,85.355,85.324,0.45739936]
[1772822702886,0.4,85.349,85.324,0.45739936]
[1772822703869,0.4,85.375,85.326,0.45110608]
[1772822704082,0.4,85.372,85.326,0.45110608]
[1772822704486,4.71703498,85.37,85.326,0.45110608]
[1772822705165,0.4,85.359,85.326,0.45110608]
[1772822705370,4.31703498,85.34,85.321,11.72039707]
[1772822705774,0.4,85.347,85.321,12.17150315]
[1772822706265,4.31703498,85.34,85.321,12.17150315]
[1772822707777,4.31703498,85.33,85.316,11.7210582]
[1772822708369,4.71703498,85.33,85.307,11.72236744]
[1772822708569,4.71703498,85.33,85.302,29.30755209]
[1772822708570,4.31703498,85.32,85.302,0.45110608]
[1772822709579,0.4,85.319,85.296,12.17492102]
[1772822709890,11.72085609,85.318,85.296,12.17492102]
[1772822710487,4.31703498,85.31,85.296,11.72381494]
[1772822711278,0.4,85.317,85.291,11.72451525]
[1772822711475,4.31703498,85.32,85.292,0.45110608]
[1772822711674,0.4,85.337,85.292,0.45110608]
[1772822711879,4.71703498,85.34,85.294,0.45110608]
[1772822712091,4.31703498,85.33,85.294,0.45110608]
[1772822712390,0.4,85.329,85.294,0.45110608]
[1772822712593,0.4,85.337,85.294,0.45110608]
[1772822713678,11.71797185,85.339,85.295,0.45110608]
[1772822713874,0.4,85.338,85.295,0.45110608]
[1772822714187,0.4,85.329,85.297,0.45110608]
[1772822715074,0.4,85.336,85.297,0.45110608]
[1772822716692,4.31703498,85.34,85.299,0.45110608]
[1772822716693,12.11852112,85.335,85.299,0.45110608]
[1772822717582,0.4,85.335,85.299,0.45110608]
[1772822718292,4.31703498,85.33,85.299,0.45110608]
[1772822718493,0.4,85.335,85.299,0.45110608]
[1772822718678,4.31703498,85.34,85.301,0.45110608]
[1772822719188,4.71703498,85.34,85.301,0.45110608]
[1772822719896,4.31703498,85.33,85.301,0.45110608]
[1772822720684,4.31703498,85.33,85.303,0.45110608]
[1772822720889,4.31703498,85.31,85.287,0.45110608]
[1772822721682,4.71703498,85.31,85.287,0.45110608]
[1772822721998,4.71703498,85.31,85.288,11.72497889]
[1772822722677,4.71703498,85.31,85.289,0.45110608]
[1772822722873,58.58918377,85.34,85.283,11.72563152]
[1772822722874,4.31703498,85.3,85.283,11.72563152]
[1772822723084,0.4,85.309,85.284,0.45110608]
[1772822723685,4.31703498,85.31,85.284,0.45110608]
[1772822724292,4.31703498,85.31,85.286,0.45110608]
[1772822725895,2.47215037,102.88,85.286,0.45110608]
[1772822725896,0.4,85.321,85.286,0.45110608]
[1772822726199,4.31703498,85.37,85.296,0.45110608]
[1772822726399,4.78028283,85.37,85.3,0.14216157]
[1772822726696,4.31703498,85.35,85.313,0.45110608]
[1772822727001,0.46324785,85.353,85.313,0.45110608]
[1772822727395,4.31703498,85.35,85.313,0.45110608]
[1772822727699,0.46324785,85.339,85.313,0.45110608]
[1772822728098,4.31703498,85.33,85.293,0.45110608]
[1772822728296,0.46324785,85.329,85.295,0.45110608]
[1772822729900,0.46324785,85.309,85.281,0.45110608]
[1772822730298,0.46324785,85.309,85.282,11.7258038]
[1772822730503,0.46324785,85.309,85.283,0.45110608]
[1772822732402,0.49660605,85.316,85.285,0.4725038]
[1772822734313,29.2917875,85.349,85.286,0.4725038]
[1772822734603,4.31806033,85.33,85.288,0.4725038]
[1772822734903,4.31806033,85.32,85.288,0.4725038]
[1772822736607,10.79461798,85.32,85.29,0.4725038]
[1772822737005,10.89801193,85.32,85.29,0.4725038]
[1772822737310,0.10339395,85.319,85.29,0.4725038]
[1772822738907,0.10339395,85.319,85.292,0.4725038]
[1772822740296,10.79461798,85.31,85.291,11.72456648]
[1772822740489,0.10339395,85.309,85.291,11.72456648]
[1772822740702,10.79461798,85.3,85.291,11.72456648]
[1772822740910,0.10339395,85.309,85.291,11.72456648]
[1772822741103,10.79461798,85.31,85.287,0.4725038]
[1772822742702,10.79461798,85.31,85.286,38.51089227]
[1772822743110,0.49660605,85.309,85.259,3.69383402]
[1772822743316,0.49660605,85.309,85.256,99.69972787]
[1772822743611,0.49660605,85.302,85.257,0.42648471]
[1772822744815,0.49660605,85.302,85.26,0.4725038]
[1772822745012,0.49660605,85.302,85.262,0.4725038]
[1772822745202,0.49660605,85.302,85.265,0.4725038]
[1772822746505,0.49660605,85.299,85.266,41.04801444]
[1772822746706,10.79461798,85.28,85.23,58.66478939]
[1772822746911,11.72319199,85.301,85.23,58.66478939]
[1772822746912,10.79461798,85.27,85.231,0.4725038]
[1772822747094,10.79461798,85.27,85.232,0.4725038]
[1772822747295,10.79461798,85.26,85.232,0.4725038]
[1772822747611,0.49660605,85.3,85.231,0.4725038]
[1772822747813,0.49660605,85.279,85.232,0.4725038]
[1772822748130,0.49660605,85.287,85.232,0.4725038]
[1772822748297,11.29122403,85.28,85.232,0.4725038]
[1772822748697,11.29122403,85.28,85.235,0.4725038]
[1772822748897,10.79461798,85.28,85.235,0.4725038]
[1772822749201,4.82477569,85.303,85.233,87.99408678]
[1772822749202,0.49660605,85.299,85.242,0.4725038]
[1772822749517,0.49660605,85.299,85.252,0.4725038]
[1772822750219,0.49660605,85.309,85.252,0.4725038]
[1772822750427,0.49660605,85.307,85.252,0.4725038]
[1772822750719,0.49660605,85.307,85.255,0.4725038]
[1772822750899,4.82477569,85.323,85.254,0.28432314]
[1772822750900,0.49660605,85.314,85.257,0.4725038]
[1772822751102,0.49660605,85.314,85.254,0.28432314]
[1772822751103,0.49660605,85.321,85.267,0.4725038]
[1772822751301,0.49660605,85.321,85.271,0.4725038]
[1772822753003,0.49660605,85.321,85.274,0.4725038]
[1772822754602,0.49660605,85.321,85.273,0.28432314]
[1772822754603,10.79461798,85.34,85.275,0.14216157]
[1772822754813,10.79461798,85.34,85.286,0.4725038]
[1772822755020,11.505618,85.35,85.295,0.4725038]
[1772822755664,11.7165989,85.349,85.295,0.4725038]
[1772822755810,10.79461798,85.34,85.295,0.4725038]
[1772822756206,11.505618,85.35,85.295,0.4725038]
[1772822756707,5.10536778,85.35,85.295,0.4725038]
[1772822756918,0.0792917,85.349,85.295,0.4725038]
[1772822757120,0.0792917,85.349,85.298,0.48309661]
[1772822757314,0.71100002,85.35,85.301,0.14216157]
[1772822757508,0.71100002,85.35,85.312,0.48309661]
[1772822758113,0.71100002,85.35,85.306,0.48309661]
[1772822758114,4.31507606,85.34,85.306,0.48309661]
[1772822758509,0.0792917,85.348,85.306,0.48309661]
[1772822758722,0.71100002,85.35,85.306,0.48309661]
[1772822759226,0.71100002,85.35,85.308,0.48309661]
[1772822759529,5.02607608,85.35,85.308,0.48309661]
[1772822759920,5.10536778,85.35,85.308,0.48309661]
[1772822760127,0.0792917,85.349,85.308,0.48309661]
[1772822760626,46.8394363,85.399,85.307,41.02828606]
[1772822760627,0.14216157,85.374,85.307,41.02828606]
[1772822760822,46.8394363,85.399,85.307,41.02828606]
[1772822760823,4.25504091,85.477,85.463,4.82477569]
[1772822761023,4.8096324,85.56,85.492,0.05984582]
[1772822761220,7.47651416,85.559,85.492,0.05984582]
[1772822761409,7.47651416,85.559,85.487,0.14216157]
[1772822761410,7.47651416,85.559,85.503,0.48309661]
[1772822761610,7.44735111,85.56,85.501,0.49677051]
[1772822761831,7.75352601,85.599,85.513,0.49677051]
[1772822762014,7.75352601,85.599,85.527,0.49677051]
[1772822762214,52.74,85.642,85.532,0.14216157]
[1772822762215,7.60400769,85.598,85.532,0.14216157]
[1772822762414,7.60400769,85.598,85.522,0.14216157]
[1772822762614,10.73319523,85.58,85.524,0.42648471]
[1772822762815,7.43349584,85.579,85.524,0.14216157]
[1772822763020,7.43349584,85.579,85.526,0.14216157]
[1772822763214,7.43349584,85.579,85.527,0.49677051]
[1772822763418,0.46713571,85.578,85.53,0.14216157]
[1772822763622,0.46713571,85.577,85.532,0.49677051]
[1772822763821,0.46713571,85.576,85.532,0.49677051]
[1772822764016,10.73319523,85.57,85.523,0.14216157]
[1772822764235,10.73319523,85.61,85.518,0.14216157]
[1772822764437,10.73319523,85.55,85.517,0.49677051]
[1772822764620,10.73319523,85.56,85.508,0.14216157]
[1772822764820,10.73319523,85.56,85.508,0.63893208]
[1772822765135,10.73319523,85.57,85.508,0.49677051]
[1772822765435,10.73319523,85.56,85.512,0.14216157]
[1772822765931,10.73319523,85.6,85.525,0.49677051]
[1772822766134,10.73319523,85.61,85.539,0.49677051]
[1772822766312,0.46713571,85.609,85.551,0.49677051]
[1772822766515,0.46713571,85.609,85.557,0.49677051]
[1772822767237,0.46713571,85.609,85.567,0.49677051]
[1772822769438,0.46713571,85.609,85.568,11.68661181]
[1772822769752,0.46713571,85.609,85.569,0.49677051]
[1772822770045,0.46713571,85.609,85.568,40.90314135]
[1772822770216,0.46713571,85.609,85.568,11.68661181]
[1772822770748,0.46713571,85.609,85.568,41.39991186]
[1772822770952,0.46713571,85.609,85.569,0.49677051]
[1772822771732,0.46713571,85.609,85.565,30.0]
[1772822772420,0.46713571,85.609,85.566,0.49677051]
[1772822773037,0.46713571,85.599,85.565,30.0]
[1772822773226,0.46713571,85.589,85.565,30.0]
[1772822773432,0.46713571,85.589,85.565,24.40681129]
[1772822773626,0.46713571,85.579,85.565,21.55267461]
[1772822773833,10.73319523,85.58,85.565,21.55267461]
[1772822773834,10.73319523,85.58,85.565,20.59111587]
[1772822774029,10.73319523,85.58,85.549,12.18911327]
[1772822774233,10.73319523,85.58,85.551,30.0]
[1772822775339,10.73319523,85.58,85.552,0.5]
[1772822775533,10.73319523,85.58,85.553,30.0]
[1772822776528,10.73319523,85.58,85.552,0.5]
[1772822776941,10.73319523,85.58,85.552,12.1887632]
[1772822777244,10.73319523,85.58,85.553,0.5]
[1772822779025,3.69383402,85.619,85.555,0.5]
[1772822779226,10.73319523,85.6,85.558,0.5]
[1772822780144,10.73319523,85.59,85.543,0.5]
[1772822780440,10.73319523,85.58,85.543,0.5]
[1772822781025,10.73319523,85.58,85.543,11.69002723]
[1772822781226,10.73319523,85.58,85.544,0.5]
[1772822781944,10.73319523,85.59,85.544,0.5]
[1772822782645,10.73319523,85.58,85.544,0.5]
[1772822782843,10.73319523,85.57,85.544,0.5]
[1772822783145,10.73319523,85.58,85.546,0.5]
[1772822783324,0.14216157,85.614,85.546,0.5]
[1772822783325,10.73319523,85.59,85.546,0.5]
[1772822783927,0.14216157,85.614,85.546,0.5]
[1772822783928,10.73319523,85.58,85.546,0.5]
[1772822784331,0.14216157,85.604,85.537,0.5]
[1772822784528,10.73319523,85.56,85.537,0.5]
[1772822785128,10.73319523,85.55,85.524,0.5]
[1772822785332,10.73319523,85.54,85.492,0.5]
[1772822785532,10.73319523,85.55,85.492,0.5]
[1772822785733,10.73319523,85.57,85.502,0.5]
[1772822785928,10.73319523,85.57,85.494,0.28432314]
[1772822785929,10.73319523,85.57,85.517,0.14216157]
[1772822786129,10.73319523,85.57,85.52,0.5]
[1772822786940,10.73319523,85.56,85.52,0.5]
[1772822787233,10.73319523,85.56,85.523,0.5]
[1772822788947,10.73319523,85.58,85.526,0.14216157]
[1772822789131,4.82477569,85.621,85.522,0.28432314]
[1772822789132,10.73319523,85.57,85.535,0.49677051]
[1772822789646,0.71719722,85.572,85.535,0.49677051]
[1772822790143,0.71719722,85.572,85.537,0.49677051]
[1772822791246,0.71719722,85.572,85.539,0.49677051]
[1772822792348,0.4,85.569,85.539,0.49677051]
[1772822792530,0.4,85.559,85.533,11.6913455]
[1772822792952,0.4,85.567,85.534,0.48317738]
[1772822793455,0.4,85.567,85.535,11.69112059]
[1772822793754,10.73335022,85.56,85.535,11.69112059]
[1772822793937,0.4,85.567,85.536,0.48317738]
[1772822794138,10.73335022,85.56,85.536,0.48317738]
[1772822794545,11.13335022,85.56,85.535,11.69112059]
[1772822795645,11.13335022,85.56,85.53,0.48317738]
[1772822797348,10.73335022,85.57,85.53,0.48317738]
[1772822797555,0.4,85.569,85.53,0.48317738]
[1772822797942,0.4,85.569,85.532,0.48317738]
[1772822799952,0.4,85.569,85.534,0.48317738]
[1772822803353,0.4,85.569,85.504,46.78114295]
[1772822803354,10.73335022,85.54,85.492,0.48317738]
[1772822803563,10.73335022,85.54,85.5,0.48317738]
[1772822803871,0.4,85.549,85.5,0.48317738]
[1772822804072,0.71719722,85.572,85.503,0.48317738]
[1772822804244,0.71719722,85.572,85.51,0.14216157]
[1772822804444,0.71719722,85.572,85.521,0.48317738]
[1772822804643,0.71719722,85.572,85.531,0.48317738]
[1772822805249,0.71719722,85.572,85.534,0.48317738]
[1772822805647,0.4,85.571,85.534,0.48317738]
[1772822805848,0.4,85.606,85.536,0.48317738]
[1772822806049,0.4,85.589,85.536,0.48317738]
[1772822807253,0.4,85.589,85.541,0.48317738]
[1772822807551,0.4,85.579,85.541,0.48317738]
[1772822807958,10.73335022,85.57,85.541,0.48317738]
[1772822808350,0.4,85.569,85.541,0.48317738]
[1772822808550,0.4,85.569,85.533,0.48317738]
[1772822808854,3.69383402,85.607,85.516,0.28432314]
[1772822808855,0.4,85.559,85.517,0.48317738]
[1772822809464,0.4,85.559,85.519,0.48317738]
[1772822811473,0.4,85.573,85.522,0.48317738]
[1772822811775,0.4,85.589,85.529,0.14216157]
[1772822811946,0.4,85.579,85.53,0.48317738]
[1772822812580,0.4,85.569,85.53,0.48317738]
[1772822812879,0.4,85.579,85.53,0.48317738]
[1772822813050,10.73335022,85.57,85.53,0.48317738]
[1772822813250,0.4,85.572,85.53,0.48317738]
[1772822813471,10.73335022,85.57,85.532,0.48317738]
[1772822813976,0.4,85.572,85.532,0.48317738]
[1772822814168,10.73335022,85.57,85.532,0.48317738]
[1772822815051,0.4,85.572,85.534,0.48317738]
[1772822815569,10.73335022,85.57,85.534,0.48317738]
[1772822815875,0.4,85.569,85.534,0.48317738]
[1772822816378,0.4,85.577,85.535,0.48322384]
[1772822817258,0.4,85.577,85.537,0.48322384]
[1772822818167,0.4,85.569,85.537,0.48322384]
[1772822819077,0.4,85.569,85.536,11.69098391]
[1772822819078,0.4,85.549,85.516,0.48322384]
[1772822819371,3.69383402,85.577,85.508,0.48322384]
[1772822819372,10.73335022,85.53,85.508,0.48322384]
[1772822819957,10.73335022,85.53,85.509,11.69467541]
[1772822820372,0.4,85.539,85.509,11.69467541]
[1772822820570,0.4,85.549,85.51,0.48322384]
[1772822820769,0.4,85.539,85.51,0.48322384]
[1772822821565,0.4,85.549,85.512,0.48322384]